bitfinex-derivatives/quotes_BTCF0:USTF0_20250527
["timestamp","ask_amount","ask_price","bid_price","bid_amount"]
[1748325210125,0.00552997,108990.0,108980.0,0.76423126]
[1748325210324,0.03804997,108990.0,108980.0,0.76423126]
[1748325211421,0.03804997,108990.0,108980.0,0.77472395]
[1748325212436,0.22149757,108990.0,108980.0,0.64955709]
[1748325212731,0.22149757,108990.0,108980.0,0.77472395]
[1748325215243,0.03804997,108990.0,108980.0,0.77472395]
[1748325216234,0.03804997,108990.0,108980.0,0.41392395]
[1748325216428,0.03804997,108990.0,108980.0,0.77472395]
[1748325218635,0.00664997,108990.0,108980.0,0.77472395]
[1748325218831,0.03962997,108990.0,108980.0,0.77472395]
[1748325219129,0.03974997,108990.0,108980.0,0.64955709]
[1748325219331,0.03974997,108990.0,108980.0,0.77472395]
[1748325221031,0.07124997,108990.0,108980.0,0.77472395]
[1748325221831,0.07124997,108990.0,108980.0,0.41392395]
[1748325222339,0.07124997,108990.0,108980.0,0.77472395]
[1748325223441,0.07124997,108990.0,108980.0,1.18236395]
[1748325224340,0.08124997,108990.0,108980.0,1.18236395]
[1748325226330,0.61549757,108990.0,108980.0,0.66519709]
[1748325226526,1.00819757,108990.0,108980.0,0.63409709]
[1748325226726,1.00819757,108990.0,108980.0,0.60159709]
[1748325227538,1.00819757,108990.0,108980.0,0.5911044]
[1748325228036,0.64819757,108990.0,108980.0,0.5911044]
[1748325228239,0.69819757,108990.0,108980.0,0.5911044]
[1748325228439,0.64819757,108990.0,108980.0,0.5911044]
[1748325228636,0.69819757,108990.0,108980.0,0.5911044]
[1748325229139,0.64819757,108990.0,108980.0,0.5911044]
[1748325229338,0.68819757,108990.0,108980.0,0.1834644]
[1748325229730,0.64819757,108990.0,108980.0,0.1834644]
[1748325229937,0.68819757,108990.0,108980.0,0.1834644]
[1748325230140,0.64819757,108990.0,108980.0,0.1834644]
[1748325230341,0.98819757,108990.0,108980.0,0.1834644]
[1748325230542,0.70819757,108990.0,108980.0,0.1834644]
[1748325230737,0.64819757,108990.0,108980.0,0.1834644]
[1748325230936,0.69819757,108990.0,108980.0,0.1834644]
[1748325231243,0.1834644,108980.0,108970.0,0.83428463]
[1748325231443,0.2463644,108980.0,108970.0,0.92625149]
[1748325232843,0.2463644,108980.0,108970.0,0.92725149]
[1748325235340,0.94866527,108990.0,108980.0,0.1834644]
[1748325235341,0.00464997,108990.0,108980.0,0.1834644]
[1748325235541,0.18809757,108990.0,108980.0,0.40223126]
[1748325235850,0.03572997,108990.0,108980.0,0.76303126]
[1748325236144,0.03584997,108990.0,108980.0,0.76303126]
[1748325236544,0.03684997,108990.0,108980.0,0.76303126]
[1748325236744,0.03784997,108990.0,108980.0,0.76303126]
[1748325237845,0.22129757,108990.0,108980.0,0.76303126]
[1748325238045,0.25149757,108990.0,108980.0,0.76303126]
[1748325239236,0.06804997,108990.0,108980.0,0.76303126]
[1748325240142,0.06804997,108990.0,108980.0,0.77616335]
[1748325241941,0.03784997,108990.0,108980.0,0.77616335]
[1748325242644,0.03784997,108990.0,108980.0,0.65099649]
[1748325242944,0.22129757,108990.0,108980.0,0.77616335]
[1748325243143,0.25299757,108990.0,108980.0,0.41536335]
[1748325243544,0.25299757,108990.0,108980.0,0.38276335]
[1748325243735,0.25299757,108990.0,108980.0,0.60423649]
[1748325243936,0.26299757,108990.0,108980.0,0.19659649]
[1748325244353,0.25299757,108990.0,108980.0,0.19659649]
[1748325244648,0.47299757,108990.0,108980.0,0.19659649]
[1748325244948,0.47299757,108990.0,108980.0,0.19397926]
[1748325244949,0.61059037,108990.0,108980.0,0.19397926]
[1748325245850,0.97139037,108990.0,108980.0,0.19397926]
[1748325246749,1.00910932,108990.0,108980.0,0.1834644]
[1748325250753,1.00910932,108990.0,108980.0,0.30863126]
[1748325250959,0.97139037,108990.0,108980.0,0.1834644]
[1748325251749,0.00664997,108990.0,108980.0,0.30863126]
[1748325251955,0.00664997,108990.0,108980.0,0.76443126]
[1748325252348,0.00652997,108990.0,108980.0,0.76443126]
[1748325252550,0.22269747,108990.0,108980.0,0.76443126]
[1748325252855,0.22269747,108990.0,108980.0,0.40363126]
[1748325253154,0.22269747,108990.0,108980.0,0.76443126]
[1748325253348,0.22269747,108990.0,108980.0,0.40363126]
[1748325254555,0.25499747,108990.0,108980.0,0.40363126]
[1748325257456,0.07154997,108990.0,108980.0,0.40363126]
[1748325260659,0.07154997,108990.0,108980.0,0.41676335]
[1748325261961,0.07154997,108990.0,108980.0,0.46428097]
[1748325269364,0.07154997,108990.0,108980.0,0.33911411]
[1748325269561,0.07154997,108990.0,108980.0,0.46428097]
[1748325271461,0.07154997,108990.0,108980.0,0.4747816]
[1748325271961,0.07154997,108990.0,108980.0,0.42726398]
[1748325272658,0.25499757,108990.0,108980.0,0.42726398]
[1748325274065,0.25499757,108990.0,108980.0,0.27069712]
[1748325274262,0.92579757,108990.0,108980.0,0.02363272]
[1748325275262,0.92579757,108990.0,108980.0,0.01050063]
[1748325275263,0.96351782,108990.0,108980.0,0.01050063]
[1748325275463,0.96351782,108990.0,108970.0,0.1593433]
[1748325275464,0.1834644,108980.0,108970.0,0.35332383]
[1748325275664,0.2799644,108980.0,108970.0,0.35332383]
[1748325275865,0.5999644,108980.0,108970.0,0.35332383]
[1748325276166,0.2999644,108980.0,108970.0,0.35332383]
[1748325276368,0.6928444,108980.0,108970.0,0.35332383]
[1748325276563,1.0528444,108980.0,108970.0,0.35332383]
[1748325276768,0.6928444,108980.0,108970.0,0.35432383]
[1748325277467,1.0028444,108980.0,108970.0,0.38492383]
[1748325277770,0.7128444,108980.0,108970.0,0.38492383]
[1748325277970,0.6928444,108980.0,108970.0,0.38492383]
[1748325278172,1.0528444,108980.0,108970.0,0.38492383]
[1748325278558,1.4136444,108980.0,108970.0,0.01287707]
[1748325278765,1.4136444,108980.0,108970.0,0.19635827]
[1748325279371,1.0536444,108980.0,108970.0,0.32152513]
[1748325280274,1.0536444,108980.0,108970.0,0.19635827]
[1748325280572,1.0736844,108980.0,108970.0,0.19635827]
[1748325280772,1.0736844,108980.0,108970.0,0.32152513]
[1748325281071,1.0536844,108980.0,108970.0,0.32152513]
[1748325281573,1.0736844,108980.0,108970.0,0.32152513]
[1748325282065,1.0536844,108980.0,108970.0,0.32152513]
[1748325282464,1.3736844,108980.0,108970.0,0.01287707]
[1748325283471,1.3736844,108980.0,108970.0,0.00237644]
[1748325285069,1.3736844,108980.0,108970.0,0.18585764]
[1748325285272,1.3736844,108980.0,108970.0,0.24865764]
[1748325285472,1.3736844,108980.0,108970.0,0.21825764]
[1748325285673,1.3736844,108980.0,108970.0,0.18585764]
[1748325286076,1.41138684,108980.0,108970.0,0.18585764]
[1748325286471,1.09138684,108980.0,108970.0,0.3110245]
[1748325286678,1.18138684,108980.0,108970.0,0.3110245]
[1748325286875,1.09138684,108980.0,108970.0,0.3110245]
[1748325287077,1.18138684,108980.0,108970.0,0.3110245]
[1748325287276,1.09138684,108980.0,108970.0,0.3110245]
[1748325287477,1.45138684,108980.0,108970.0,0.3110245]
[1748325287677,1.18138684,108980.0,108970.0,0.3110245]
[1748325287975,1.16138684,108980.0,108970.0,0.3110245]
[1748325289079,0.74846684,108980.0,108970.0,0.3110245]
[1748325289278,1.16142684,108980.0,108970.0,0.3110245]
[1748325289480,1.47142684,108980.0,108970.0,0.3110245]
[1748325289675,1.41142684,108980.0,108970.0,0.3110245]
[1748325289881,1.22142684,108980.0,108970.0,0.3110245]
[1748325290181,1.1837244,108980.0,108970.0,0.3110245]
[1748325290387,1.0537244,108980.0,108970.0,0.3110245]
[1748325290576,1.1737244,108980.0,108970.0,0.3110245]
[1748325290778,1.41811622,108980.0,108970.0,0.3110245]
[1748325290977,1.17811622,108980.0,108970.0,0.3110245]
[1748325292484,1.17811622,108980.0,108970.0,0.18585764]
[1748325292677,1.17811622,108980.0,108970.0,0.3110245]
[1748325292877,1.15811622,108980.0,108970.0,0.3110245]
[1748325294987,1.15811622,108980.0,108970.0,0.3433245]
[1748325297392,1.15811622,108980.0,108970.0,0.3753245]
[1748325298291,0.74515622,108980.0,108970.0,0.3753245]
[1748325298491,1.15811622,108980.0,108970.0,0.3753245]
[1748325299695,1.15811622,108980.0,108970.0,0.25015764]
[1748325299896,1.15811622,108980.0,108970.0,0.3753245]
[1748325300396,1.05811622,108980.0,108970.0,0.3753245]
[1748325300591,1.05811622,108980.0,108970.0,0.4060245]
[1748325301490,1.39811622,108980.0,108970.0,0.4060245]
[1748325301682,1.05811622,108980.0,108970.0,0.4060245]
[1748325301883,1.41811622,108980.0,108970.0,0.4060245]
[1748325302088,1.05811622,108980.0,108970.0,0.4060245]
[1748325302288,1.05811622,108980.0,108970.0,0.45351051]
[1748325302795,1.10811622,108980.0,108970.0,0.45351051]
[1748325302991,1.10811622,108980.0,108970.0,0.46401114]
[1748325302992,1.43811622,108980.0,108970.0,0.46401114]
[1748325303197,1.09811622,108980.0,108970.0,0.46401114]
[1748325303493,1.38811622,108980.0,108970.0,0.46401114]
[1748325303691,1.10811622,108980.0,108970.0,0.46401114]
[1748325304190,1.1458699,108980.0,108970.0,0.46401114]
[1748325305197,1.1458699,108980.0,108970.0,0.41652513]
[1748325307499,1.0323699,108980.0,108970.0,0.41652513]
[1748325308001,1.0324899,108980.0,108970.0,0.41652513]
[1748325308601,0.6195299,108980.0,108970.0,0.41652513]
[1748325308797,1.0324899,108980.0,108970.0,0.41652513]
[1748325309199,0.6195299,108980.0,108970.0,0.41652513]
[1748325309397,1.0324899,108980.0,108970.0,0.41652513]
[1748325309600,0.99473622,108980.0,108970.0,0.41652513]
[1748325311397,1.05663622,108980.0,108970.0,0.41652513]
[1748325311702,0.64367622,108980.0,108970.0,0.41652513]
[1748325311902,1.05663622,108980.0,108970.0,0.41652513]
[1748325312497,0.64367622,108980.0,108970.0,0.41652513]
[1748325312804,0.6815412,108980.0,108970.0,0.41652513]
[1748325313104,0.2588412,108980.0,108970.0,0.77732513]
[1748325313408,0.2587212,108980.0,108970.0,0.77732513]
[1748325313704,0.22097622,108980.0,108970.0,0.7668245]
[1748325314004,0.22097622,108980.0,108970.0,0.64165764]
[1748325314301,0.22097622,108980.0,108970.0,0.4060245]
[1748325314704,0.22097622,108980.0,108970.0,0.4534245]
[1748325315403,0.99457622,108980.0,108970.0,0.29755764]
[1748325315599,1.02617622,108980.0,108970.0,0.4227245]
[1748325315798,1.43913622,108980.0,108970.0,0.2392433]
[1748325315999,1.43913622,108980.0,108970.0,0.29755764]
[1748325316406,1.43913622,108980.0,108970.0,0.11407644]
[1748325316909,1.43913622,108980.0,108970.0,0.30805897]
[1748325317101,1.43913622,108980.0,108970.0,0.09227777]
[1748325317297,1.43913622,108980.0,108970.0,0.24375897]
[1748325318411,1.47699364,108980.0,108970.0,0.24375897]
[1748325319608,1.47699364,108980.0,108970.0,0.23325764]
[1748325319800,1.47699364,108980.0,108970.0,0.18585764]
[1748325320403,1.06403364,108980.0,108970.0,0.18585764]
[1748325320606,1.27699364,108980.0,108970.0,0.18585764]
[1748325320809,1.41699364,108980.0,108970.0,0.18585764]
[1748325321509,1.41699364,108980.0,108970.0,0.00237644]
[1748325321815,1.41699364,108980.0,108970.0,0.18585774]
[1748325323311,1.41699364,108980.0,108970.0,0.00237644]
[1748325325309,1.5421605,108980.0,108970.0,4e-08]
[1748325325611,0.1834812,108970.0,108960.0,0.00013815]
[1748325325807,0.1834981,108960.0,108950.0,0.0298765]
[1748325326010,0.1835149,108950.0,108940.0,0.45298672]
[1748325326308,0.63910064,108950.0,108940.0,0.45298672]
[1748325326507,0.63996359,108950.0,108940.0,0.45298672]
[1748325327012,0.66996359,108950.0,108940.0,0.31534092]
[1748325327212,0.63996359,108950.0,108940.0,0.22096686]
[1748325327412,0.63996359,108950.0,108940.0,0.40449866]
[1748325327611,0.98996359,108950.0,108940.0,0.40449866]
[1748325327811,0.98996359,108950.0,108940.0,0.0633]
[1748325328114,0.63996359,108950.0,108940.0,0.0633]
[1748325328305,0.78996359,108950.0,108940.0,0.0633]
[1748325328614,1.00996359,108950.0,108940.0,0.0633]
[1748325328811,0.74996359,108950.0,108940.0,0.2468317]
[1748325329007,0.76996359,108950.0,108940.0,0.2468317]
[1748325329207,0.76996359,108950.0,108940.0,0.37199856]
[1748325329208,0.63996359,108950.0,108940.0,0.37199856]
[1748325329410,0.76996359,108950.0,108940.0,0.37199856]
[1748325329611,0.63996359,108950.0,108940.0,0.37199856]
[1748325329915,0.76996359,108950.0,108940.0,0.37199856]
[1748325330113,0.74996359,108950.0,108940.0,0.37199856]
[1748325330316,1.16296359,108950.0,108940.0,0.37199856]
[1748325330515,1.16296359,108950.0,108940.0,0.40379856]
[1748325332525,0.74996359,108950.0,108940.0,0.40379856]
[1748325332717,1.16300359,108950.0,108940.0,0.40379856]
[1748325333217,1.06300359,108950.0,108940.0,0.40379856]
[1748325333719,1.37300359,108950.0,108940.0,0.40379856]
[1748325334019,1.07300359,108950.0,108940.0,0.40379856]
[1748325334522,0.63120359,108950.0,108940.0,0.76459856]
[1748325334821,0.63120359,108950.0,108940.0,0.40379856]
[1748325335115,0.63132359,108950.0,108940.0,0.40379856]
[1748325335510,0.63571541,108950.0,108940.0,0.40379856]
[1748325335719,0.63571541,108950.0,108940.0,0.40579856]
[1748325336019,0.63571541,108950.0,108940.0,0.40779856]
[1748325336317,0.22267541,108950.0,108940.0,0.40779856]
[1748325336616,0.03916051,108950.0,108940.0,0.40779856]
[1748325336812,0.00624051,108950.0,108940.0,0.86038656]
[1748325337007,0.00636051,108950.0,108940.0,0.86038656]
[1748325337911,0.00624051,108950.0,108940.0,0.86038656]
[1748325338212,0.00636051,108950.0,108940.0,0.86038656]
[1748325340319,0.00636051,108950.0,108940.0,0.7352197]
[1748325340621,0.00636051,108950.0,108940.0,0.76859856]
[1748325340811,0.03956051,108950.0,108940.0,0.76859856]
[1748325344319,0.22307541,108950.0,108940.0,0.6434317]
[1748325344622,0.23307541,108950.0,108940.0,0.76859856]
[1748325344818,0.29917541,108950.0,108940.0,0.76859856]
[1748325345115,0.29917541,108950.0,108940.0,0.40779856]
[1748325345316,0.29917541,108950.0,108940.0,0.81155856]
[1748325347725,0.29917541,108950.0,108940.0,0.82205866]
[1748325353325,0.71221541,108950.0,108940.0,0.82205866]
[1748325356130,0.70221541,108950.0,108940.0,0.82205866]
[1748325357022,0.10566051,108950.0,108940.0,0.82205866]
[1748325357222,0.22295541,108950.0,108940.0,0.82205866]
[1748325357422,0.22307541,108950.0,108940.0,0.82205866]
[1748325357624,0.03956051,108950.0,108940.0,0.82205866]
[1748325357825,0.22307541,108950.0,108940.0,0.82205866]
[1748325358934,0.2249241,108950.0,108940.0,0.82205866]
[1748325359627,0.0414092,108950.0,108940.0,0.82205866]
[1748325359834,0.2249241,108950.0,108940.0,0.6968918]
[1748325360036,0.2551241,108950.0,108940.0,0.82205866]
[1748325361133,0.2874241,108950.0,108940.0,0.82205866]
[1748325363037,0.2874241,108950.0,108940.0,0.6968918]
[1748325363225,0.2874241,108950.0,108940.0,0.82205866]
[1748325365142,0.1039092,108950.0,108940.0,0.82205866]
[1748325366242,0.2874241,108950.0,108940.0,0.82205866]
[1748325367948,0.2874241,108950.0,108940.0,0.83754914]
[1748325368844,0.2874241,108950.0,108940.0,0.6968918]
[1748325369045,0.2874241,108950.0,108940.0,0.83754914]
[1748325369344,0.2874241,108950.0,108940.0,0.80574914]
[1748325369846,0.6482241,108950.0,108940.0,0.80574914]
[1748325370143,1.0612641,108950.0,108940.0,0.80574914]
[1748325374338,1.0612641,108950.0,108940.0,0.80838308]
[1748325374645,1.4412641,108950.0,108940.0,0.80838308]
[1748325374849,1.0712641,108950.0,108940.0,0.74508308]
[1748325376041,1.0612641,108950.0,108940.0,0.80578308]
[1748325376246,1.0712641,108950.0,108940.0,0.80578308]
[1748325377146,1.0612641,108950.0,108940.0,0.85325097]
[1748325377348,1.0712641,108950.0,108940.0,0.85325097]
[1748325377649,1.4412641,108950.0,108940.0,0.85325097]
[1748325377849,1.0612641,108950.0,108940.0,0.85325097]
[1748325378253,1.0712641,108950.0,108940.0,0.85325097]
[1748325378551,1.3812641,108950.0,108940.0,0.85325097]
[1748325378750,1.4212641,108950.0,108940.0,0.85325097]
[1748325379047,1.0612641,108950.0,108940.0,0.85325097]
[1748325379554,1.0712641,108950.0,108940.0,0.85325097]
[1748325380052,0.0082092,108950.0,108940.0,1.21405097]
[1748325380253,0.0402892,108950.0,108940.0,1.24695097]
[1748325380554,0.2239241,108950.0,108940.0,1.19948308]
[1748325382854,0.0404092,108950.0,108940.0,1.19948308]
[1748325383060,0.0404092,108950.0,108940.0,1.05882574]
[1748325383253,0.0404092,108950.0,108940.0,1.19948308]
[1748325385657,0.2239241,108950.0,108940.0,1.19948308]
[1748325388454,0.2539241,108950.0,108940.0,1.19948308]
[1748325390357,0.2539241,108950.0,108940.0,1.05882574]
[1748325390557,0.2871241,108950.0,108940.0,1.19948308]
[1748325391059,0.1036092,108950.0,108940.0,1.19948308]
[1748325396365,0.1036092,108950.0,108940.0,1.05882574]
[1748325396565,0.1036092,108950.0,108940.0,1.19948308]
[1748325400063,0.0704092,108950.0,108940.0,1.05882574]
[1748325400264,0.0704092,108950.0,108940.0,1.19948308]
[1748325401663,0.0704092,108950.0,108940.0,1.05882574]
[1748325401855,0.1029092,108950.0,108940.0,1.2469182]
[1748325403264,0.2864241,108950.0,108940.0,1.2469182]
[1748325403658,0.1029092,108950.0,108940.0,1.2469182]
[1748325403963,0.2864241,108950.0,108940.0,1.2469182]
[1748325404564,0.2864241,108950.0,108940.0,1.19948308]
[1748325405068,0.1029092,108950.0,108940.0,1.19948308]
[1748325405408,0.2864241,108950.0,108940.0,1.13608308]
[1748325405569,0.2864241,108950.0,108940.0,1.16938308]
[1748325405766,0.2864241,108950.0,108940.0,1.02872574]
[1748325405963,0.2864241,108950.0,108940.0,1.20228308]
[1748325406157,0.1029092,108950.0,108940.0,1.20228308]
[1748325409175,0.1029092,108950.0,108940.0,0.84148308]
[1748325409372,0.1029092,108950.0,108940.0,1.20228308]
[1748325409865,0.1029092,108950.0,108940.0,1.24974284]
[1748325410875,0.1029092,108950.0,108940.0,1.1090855]
[1748325411075,0.1029092,108950.0,108940.0,1.24974284]
[1748325412475,0.1029092,108950.0,108940.0,0.88894284]
[1748325412675,0.1029092,108950.0,108940.0,1.24974284]
[1748325415074,0.1029092,108950.0,108940.0,1.1090855]
[1748325415278,0.1029092,108950.0,108940.0,1.24974284]
[1748325416776,0.0080892,108950.0,108940.0,1.24974284]
[1748325417981,0.0082092,108950.0,108940.0,1.24974284]
[1748325418472,0.03043815,108960.0,108950.0,0.1835149]
[1748325418774,0.03043815,108960.0,108950.0,1.19171224]
[1748325418978,0.03055815,108960.0,108950.0,1.19171224]
[1748325421481,0.03055815,108960.0,108950.0,1.19471224]
[1748325421872,0.03055815,108960.0,108950.0,1.19771224]
[1748325424883,0.03494997,108960.0,108950.0,1.19771224]
[1748325425085,0.03494997,108960.0,108950.0,1.0570549]
[1748325425284,0.03494997,108960.0,108950.0,1.19771224]
[1748325426387,0.03494997,108960.0,108950.0,1.19502811]
[1748325429385,0.03494997,108960.0,108950.0,0.83422811]
[1748325429573,0.03494997,108960.0,108950.0,1.19502811]
[1748325429778,0.03494997,108960.0,108950.0,1.05437077]
[1748325429978,0.03494997,108960.0,108950.0,1.19502811]
[1748325430386,0.03494997,108960.0,108950.0,1.05437077]
[1748325431786,0.24934807,108960.0,108950.0,0.61123077]
[1748325431978,0.28264807,108960.0,108950.0,1.16488811]
[1748325432579,0.28264807,108960.0,108950.0,0.80408811]
[1748325433189,0.28264807,108960.0,108950.0,0.69473077]
[1748325433380,0.28264807,108960.0,108950.0,0.83538811]
[1748325433789,0.28264807,108960.0,108950.0,0.42238811]
[1748325434693,0.28264807,108960.0,108950.0,0.43552215]
[1748325435391,0.28264807,108960.0,108950.0,0.36860628]
[1748325436381,0.09914997,108960.0,108950.0,0.36860628]
[1748325436788,0.28264807,108960.0,108950.0,0.36860628]
[1748325437993,0.28264807,108960.0,108950.0,0.76568628]
[1748325443497,0.28264807,108960.0,108950.0,0.36860628]
[1748325443697,0.28264807,108960.0,108950.0,0.76568628]
[1748325443997,0.28264807,108960.0,108950.0,0.82748628]
[1748325444397,0.28264807,108960.0,108950.0,0.79688628]
[1748325444794,0.28264807,108960.0,108950.0,0.76568628]
[1748325444996,0.28264807,108960.0,108950.0,0.36860628]
[1748325445195,0.28264807,108960.0,108950.0,0.73438628]
[1748325446200,0.28264807,108960.0,108950.0,0.33730628]
[1748325446408,0.28264807,108960.0,108950.0,0.59372894]
[1748325446701,0.64344807,108960.0,108950.0,0.73438628]
[1748325449402,0.64344807,108960.0,108950.0,0.59372894]
[1748325449707,0.64344807,108960.0,108950.0,0.73438628]
[1748325455296,0.64344807,108960.0,108950.0,0.59372894]
[1748325456498,0.68162589,108960.0,108950.0,0.60524793]
[1748325456699,1.18308323,108960.0,108950.0,0.42273303]
[1748325456895,1.59608323,108960.0,108950.0,0.42273303]
[1748325457102,1.68786323,108960.0,108950.0,0.02565303]
[1748325457697,1.68786323,108960.0,108950.0,0.002]
[1748325458602,2.02786323,108960.0,108950.0,0.002]
[1748325458806,2.02986323,108960.0,108950.0,0.001]
[1748325459809,0.1835149,108950.0,108940.0,0.01189591]
[1748325460011,1.0212149,108950.0,108940.0,0.01189591]
[1748325461311,1.16187224,108950.0,108940.0,0.00137692]
[1748325462810,1.16287224,108950.0,108940.0,0.00137692]
[1748325463009,1.0222149,108950.0,108940.0,0.00137692]
[1748325464004,1.0222149,108950.0,108940.0,0.14203426]
[1748325464812,0.6614149,108950.0,108940.0,0.14203426]
[1748325465110,1.3830149,108950.0,108940.0,0.14203426]
[1748325466812,1.7960549,108950.0,108940.0,0.14203426]
[1748325467506,1.7960549,108950.0,108940.0,0.32556596]
[1748325467913,1.5560549,108950.0,108940.0,0.35686596]
[1748325468115,1.7360549,108950.0,108940.0,0.35686596]
[1748325468304,1.7360549,108950.0,108940.0,0.32556596]
[1748325470613,0.80888672,108950.0,108940.0,0.32556596]
[1748325470814,0.66588672,108950.0,108940.0,0.42146596]
[1748325471116,0.66600672,108950.0,108940.0,0.42146596]
[1748325471716,0.66500672,108950.0,108940.0,0.42246596]
[1748325472422,0.66500672,108950.0,108940.0,0.42146596]
[1748325472623,0.66500672,108950.0,108940.0,0.42246596]
[1748325473127,0.66500672,108950.0,108940.0,0.42346596]
[1748325473530,0.66500672,108950.0,108940.0,0.43398495]
[1748325473724,0.25192672,108950.0,108940.0,0.43298495]
[1748325473920,0.66500672,108950.0,108940.0,0.43398495]
[1748325474229,0.66488672,108950.0,108940.0,0.43398495]
[1748325474430,0.25192672,108950.0,108940.0,0.43398495]
[1748325474634,0.66500672,108950.0,108940.0,0.43398495]
[1748325475225,0.25192672,108950.0,108940.0,0.43398495]
[1748325476229,0.21962672,108950.0,108940.0,0.43398495]
[1748325478031,0.03611182,108950.0,108940.0,0.79478495]
[1748325478233,0.03599182,108950.0,108940.0,0.79478495]
[1748325478434,0.03611182,108950.0,108940.0,0.79478495]
[1748325479635,0.03611182,108950.0,108940.0,0.78426596]
[1748325481529,0.03611182,108950.0,108940.0,0.83162453]
[1748325482135,0.21962672,108950.0,108940.0,0.69096719]
[1748325482334,0.21962672,108950.0,108940.0,0.83162453]
[1748325483026,0.21962672,108950.0,108940.0,0.47082453]
[1748325483535,0.21962672,108950.0,108940.0,0.83162453]
[1748325484036,0.25172672,108950.0,108940.0,0.83162453]
[1748325484334,0.25172672,108950.0,108940.0,0.47082453]
[1748325485235,0.25172672,108950.0,108940.0,0.83162453]
[1748325485539,0.25172672,108950.0,108940.0,0.47082453]
[1748325485738,0.97312672,108950.0,108940.0,0.19139283]
[1748325485945,1.11378406,108950.0,108940.0,0.38805857]
[1748325486136,1.11378406,108950.0,108940.0,0.06386953]
[1748325487237,1.11378406,108950.0,108940.0,0.07437993]
[1748325488040,1.11378406,108950.0,108940.0,0.02702136]
[1748325488648,1.11378406,108950.0,108940.0,0.21055306]
[1748325491843,1.15192469,108950.0,108940.0,0.18690862]
[1748325492034,1.15192469,108950.0,108940.0,0.32756596]
[1748325492344,1.56500469,108950.0,108940.0,0.32756596]
[1748325492538,1.52686406,108950.0,108940.0,0.32756596]
[1748325492944,1.38620672,108950.0,108940.0,0.32756596]
[1748325494342,0.97312672,108950.0,108940.0,0.32756596]
[1748325494543,1.13620672,108950.0,108940.0,0.32756596]
[1748325494734,1.05608672,108950.0,108940.0,0.42336596]
[1748325494935,1.05608672,108950.0,108940.0,0.43387636]
[1748325495142,0.64300672,108950.0,108940.0,0.43387636]
[1748325495345,1.05608672,108950.0,108940.0,0.43387636]
[1748325495532,1.05620672,108950.0,108940.0,0.43387636]
[1748325495843,1.37620672,108950.0,108940.0,0.43387636]
[1748325496044,1.05620672,108950.0,108940.0,0.29321902]
[1748325496239,1.39620672,108950.0,108940.0,0.19741902]
[1748325496439,1.39620672,108950.0,108940.0,0.33807636]
[1748325497243,1.39620672,108950.0,108940.0,0.15454466]
[1748325497946,1.39620672,108950.0,108940.0,0.01388732]
[1748325499244,1.39620672,108950.0,108940.0,0.19741902]
[1748325502346,0.64312672,108950.0,108940.0,0.32247231]
[1748325502545,1.19620672,108950.0,108940.0,0.32247231]
[1748325502849,1.19608672,108950.0,108940.0,0.41437231]
[1748325503643,1.19620672,108950.0,108940.0,0.41437231]
[1748325504349,0.78312672,108950.0,108940.0,0.41437231]
[1748325504550,1.19620672,108950.0,108940.0,0.41437231]
[1748325506352,1.05620672,108950.0,108940.0,0.41437231]
[1748325506953,0.69540672,108950.0,108940.0,0.41437231]
[1748325507154,1.05620672,108950.0,108940.0,0.41437231]
[1748325508248,0.64312672,108950.0,108940.0,0.41437231]
[1748325508452,1.05620672,108950.0,108940.0,0.41437231]
[1748325511059,1.05620672,108950.0,108940.0,0.31437231]
[1748325512260,1.05620672,108950.0,108940.0,0.18931902]
[1748325512559,1.05620672,108950.0,108940.0,0.31437231]
[1748325514561,1.09438633,108950.0,108940.0,0.31437231]
[1748325515560,1.09438633,108950.0,108940.0,0.18931902]
[1748325515859,1.09438633,108950.0,108940.0,0.31437231]
[1748325516060,1.09438633,108950.0,108940.0,0.36137583]
[1748325517760,0.73358633,108950.0,108940.0,0.36137583]
[1748325517961,1.09438633,108950.0,108940.0,0.37698418]
[1748325518864,1.09438633,108950.0,108940.0,0.32998066]
[1748325520464,0.68130633,108950.0,108940.0,0.32998066]
[1748325520657,1.09438633,108950.0,108940.0,0.32998066]
[1748325523763,1.09438633,108950.0,108940.0,0.29978066]
[1748325523960,1.09438633,108950.0,108940.0,0.26828066]
[1748325526363,1.45438633,108950.0,108940.0,0.23808066]
[1748325526966,1.41620672,108950.0,108940.0,0.23808066]
[1748325527164,1.41620672,108950.0,108940.0,0.28512986]
[1748325530066,1.45441361,108950.0,108940.0,0.28512986]
[1748325532770,1.45441361,108950.0,108940.0,0.23808066]
[1748325534772,1.45441361,108950.0,108940.0,0.09741902]
[1748325534965,0.1835317,108940.0,108930.0,0.79531337]
[1748325535269,0.7665317,108940.0,108930.0,0.79531337]
[1748325535769,0.7665317,108940.0,108930.0,0.85821337]
[1748325536272,0.7665317,108940.0,108930.0,1.14153665]
[1748325537464,0.7665317,108940.0,108930.0,1.14353665]
[1748325539265,0.6465317,108940.0,108930.0,1.00287501]
[1748325540070,0.6365317,108940.0,108930.0,1.00287501]
[1748325540363,0.6465317,108940.0,108930.0,1.00287501]
[1748325540565,0.6365317,108940.0,108930.0,1.00287501]
[1748325540764,0.6465317,108940.0,108930.0,1.00287501]
[1748325541071,0.9865317,108940.0,108930.0,1.00287501]
[1748325541271,1.0165317,108940.0,108930.0,0.54305501]
[1748325541570,0.6465317,108940.0,108930.0,0.93977501]
[1748325542072,0.6365317,108940.0,108930.0,0.93977501]
[1748325542472,0.6465317,108940.0,108930.0,0.93977501]
[1748325542765,0.6365317,108940.0,108930.0,0.93977501]
[1748325542971,0.6465317,108940.0,108930.0,0.93977501]
[1748325543365,0.6365317,108940.0,108930.0,0.93977501]
[1748325543560,0.6465317,108940.0,108930.0,0.93977501]
[1748325544775,0.6365317,108940.0,108930.0,0.93977501]
[1748325544970,0.6465317,108940.0,108930.0,0.93977501]
[1748325545474,0.6565317,108940.0,108930.0,0.93977501]
[1748325545679,0.66092352,108940.0,108930.0,0.93977501]
[1748325545874,0.65092352,108940.0,108930.0,0.93977501]
[1748325546175,0.64092352,108940.0,108930.0,0.93977501]
[1748325546769,0.65092352,108940.0,108930.0,0.93977501]
[1748325547177,0.64092352,108940.0,108930.0,0.93977501]
[1748325547372,0.66092352,108940.0,108930.0,0.93977501]
[1748325547675,0.64092352,108940.0,108930.0,0.79911337]
[1748325547876,0.65092352,108940.0,108930.0,0.93977501]
[1748325548677,0.66092352,108940.0,108930.0,0.93977501]
[1748325548878,0.65092352,108940.0,108930.0,0.93977501]
[1748325549078,0.65092352,108940.0,108930.0,0.97037501]
[1748325549683,0.66092352,108940.0,108930.0,0.97037501]
[1748325549974,0.97092352,108940.0,108930.0,0.97037501]
[1748325550175,0.64092352,108940.0,108930.0,0.97037501]
[1748325550377,0.66092352,108940.0,108930.0,0.97037501]
[1748325550875,0.64092352,108940.0,108930.0,0.97037501]
[1748325551071,1.01092352,108940.0,108930.0,0.93977501]
[1748325551279,0.66092352,108940.0,108930.0,0.93977501]
[1748325551868,1.03320352,108940.0,108930.0,0.93977501]
[1748325552077,0.69320352,108940.0,108930.0,1.00307501]
[1748325552779,0.71320352,108940.0,108930.0,1.00307501]
[1748325552976,0.69320352,108940.0,108930.0,0.86241337]
[1748325553281,0.71320352,108940.0,108930.0,1.00307501]
[1748325553980,0.69320352,108940.0,108930.0,1.00307501]